bitfinex-derivatives/quotes_BTCF0:USTF0_20210708
["timestamp","ask_amount","ask_price","bid_price","bid_amount"]
[1625710495290,0.52745478,33374.0,33373.0,3.46962661]
[1625710497244,1.22965763,33375.0,33373.0,3.46962661]
[1625710497391,1.22965763,33375.0,33374.0,2.2145142]
[1625710497541,1.22965763,33375.0,33374.0,2.2715142]
[1625710498142,0.52693596,33375.0,33374.0,2.2715142]
[1625710499045,0.52693596,33375.0,33374.0,2.51208964]
[1625710500020,1.22906782,33376.0,33374.0,2.51208964]
[1625710500397,0.52669827,33376.0,33375.0,2.21379947]
[1625710500546,0.52669827,33376.0,33375.0,6.02129947]
[1625710501074,0.52669827,33376.0,33375.0,6.26187491]
[1625710504001,1.22881746,33377.0,33375.0,6.26187491]
[1625710504151,1.22881746,33377.0,33375.0,6.26598332]
[1625710504302,0.52661161,33377.0,33376.0,1.19026939]
[1625710504451,0.52661161,33377.0,33376.0,1.24726939]
[1625710506401,0.52661161,33377.0,33376.0,1.25137672]
[1625710508278,1.22836911,33378.0,33376.0,1.25137672]
[1625710508584,0.52641129,33377.0,33376.0,0.56711545]
[1625710508728,2.55447631,33377.0,33376.0,0.057]
[1625710508877,2.55447631,33377.0,33376.0,0.00410765]
[1625710509497,9.71989423,33377.0,33376.0,0.00410765]
[1625710510684,9.71989423,33377.0,33375.0,0.24057544]
[1625710510835,4.91354417,33376.0,33375.0,0.24057544]
[1625710511209,4.91354417,33376.0,33375.0,0.24468392]
[1625710511733,4.92902146,33376.0,33375.0,0.24468392]
[1625710512034,4.92902146,33376.0,33375.0,0.24057544]
[1625710512183,4.92902146,33376.0,33373.0,0.001]
[1625710512333,6.50857821,33376.0,33373.0,0.001]
[1625710512484,6.50857821,33376.0,33368.0,0.002]
[1625710512635,6.49444597,33374.0,33368.0,0.002]
[1625710512938,4.91503616,33369.0,33368.0,0.002]
[1625710513088,5.19514616,33369.0,33368.0,0.002]
[1625710513236,5.67629704,33369.0,33368.0,0.002]
[1625710513912,5.69177703,33369.0,33368.0,0.002]
[1625710514511,5.67629704,33369.0,33368.0,0.002]
[1625710517365,5.67629704,33369.0,33366.0,0.001]
[1625710517738,4.91525759,33367.0,33366.0,0.001]
[1625710519850,3.5109735,33367.0,33366.0,0.001]
[1625710521272,0.76126088,33369.0,33366.0,0.001]
[1625710521573,3.51065606,33367.0,33366.0,0.001]
[1625710526303,3.51065606,33367.0,33364.0,0.48215088]
[1625710526603,2.28192562,33365.0,33364.0,0.48215088]
[1625710527355,2.52250106,33365.0,33364.0,0.48215088]
[1625710532237,2.52250106,33365.0,33364.0,5.82945088]
[1625710532687,2.52250106,33365.0,33364.0,0.48215088]
[1625710533212,2.52250106,33365.0,33360.0,0.75200877]
[1625710533213,3.75088405,33365.0,33360.0,0.75200877]
[1625710533363,0.48115088,33361.0,33360.0,0.51143333]
[1625710533513,2.04889302,33361.0,33360.0,0.51143333]
[1625710533744,2.04889302,33361.0,33359.0,1.19538595]
[1625710534039,0.52656204,33360.0,33359.0,0.51347485]
[1625710534341,1.22850568,33360.0,33359.0,0.00610648]
[1625710535391,1.22850568,33360.0,33359.0,0.00410648]
[1625710536821,0.52656204,33360.0,33359.0,0.51590705]
[1625710537120,1.22837656,33360.0,33359.0,0.00410648]
[1625710537799,2.2809893,33360.0,33359.0,0.00410648]
[1625710543504,1.22837656,33360.0,33359.0,0.00410648]
[1625710544556,2.27998955,33360.0,33359.0,0.00410648]
[1625710544857,2.27998955,33360.0,33358.0,0.001]
[1625710545157,0.70181452,33360.0,33359.0,0.00410769]
[1625710545459,2.27907839,33360.0,33359.0,0.00410769]
[1625710546057,2.27907839,33360.0,33358.0,0.001]
[1625710546058,2.36907839,33360.0,33358.0,0.001]
[1625710546221,2.36907839,33360.0,33353.0,1.19691088]
[1625710546392,4.90745167,33359.0,33353.0,0.002]
[1625710546510,4.92295768,33359.0,33354.0,0.00410412]
[1625710546672,1.22691057,33355.0,33354.0,0.00410412]
[1625710546809,3.50571852,33355.0,33354.0,0.00410412]
[1625710547110,4.92346121,33355.0,33354.0,0.00410412]
[1625710547428,4.92346121,33355.0,33351.0,0.002]
[1625710547560,0.72172632,33352.0,33351.0,0.002]
[1625710547712,1.03694632,33352.0,33351.0,0.002]
[1625710548009,4.55634398,33352.0,33351.0,0.00610482]
[1625710548308,4.55634398,33352.0,33351.0,0.002]
[1625710548460,4.54083634,33352.0,33351.0,0.002]
[1625710549209,4.54083634,33352.0,33346.0,0.003]
[1625710549359,5.2895,33349.0,33346.0,0.003]
[1625710549511,0.48115088,33347.0,33346.0,0.003]
[1625710549960,0.48115088,33347.0,33346.0,0.00710502]
[1625710550563,0.48115088,33347.0,33346.0,0.003]
[1625710550863,0.48115088,33347.0,33346.0,0.00710484]
[1625710551388,0.48115088,33347.0,33346.0,0.01120964]
[1625710556341,0.48115088,33347.0,33346.0,0.00820964]
[1625710566628,0.48115088,33347.0,33346.0,0.01231296]
[1625710568432,0.75275088,33347.0,33346.0,0.01231296]
[1625710569559,0.75275088,33347.0,33346.0,0.52548933]
[1625710569710,0.48115088,33347.0,33346.0,0.58248933]
[1625710570463,0.48115088,33347.0,33346.0,1.54426946]
[1625710570763,0.48115088,33347.0,33346.0,2.56967717]
[1625710570987,0.48115088,33347.0,33346.0,3.76488559]
[1625710571287,0.48115088,33347.0,33346.0,5.13071059]
[1625710571588,0.24057544,33347.0,33346.0,5.13071059]
[1625710571740,0.24057544,33347.0,33346.0,5.61186147]
[1625710571895,0.001,33350.0,33346.0,5.61186147]
[1625710572190,0.001,33350.0,33349.0,3.4114188]
[1625710572341,0.001,33350.0,33349.0,3.4684188]
[1625710572492,0.001,33350.0,33349.0,4.83764708]
[1625710572793,0.001,33350.0,33349.0,3.47252075]
[1625710573245,0.001,33350.0,33349.0,0.57281477]
[1625710573392,3.7803,33350.0,33349.0,0.57281477]
[1625710573542,3.7803,33350.0,33349.0,2.28095591]
[1625710573692,4.02087544,33350.0,33349.0,2.28095591]
[1625710573843,4.02087544,33350.0,33349.0,1.25607123]
[1625710575043,4.02087544,33350.0,33349.0,0.57281477]
[1625710575192,4.72246079,33350.0,33349.0,0.06110195]
[1625710575341,5.24869364,33350.0,33349.0,0.06110195]
[1625710575493,4.54710829,33350.0,33349.0,0.06110195]
[1625710575642,5.24868884,33350.0,33349.0,0.06110195]
[1625710575869,4.54710829,33350.0,33349.0,0.06110195]
[1625710576092,5.24871178,33350.0,33349.0,0.06110195]
[1625710576317,4.54710829,33350.0,33349.0,0.06110195]
[1625710576619,5.24873593,33350.0,33349.0,0.06110195]
[1625710577448,5.49388593,33350.0,33349.0,0.06110195]
[1625710578045,4.79225829,33350.0,33349.0,0.06110195]
[1625710578345,4.26602544,33350.0,33349.0,0.57429171]
[1625710579172,4.26602544,33350.0,33349.0,0.06110195]
[1625710579472,4.79231862,33350.0,33349.0,0.00410195]
[1625710579621,5.49400391,33350.0,33349.0,0.00410195]
[1625710579922,6.54649843,33350.0,33349.0,0.00410195]
[1625710582022,2.76719843,33350.0,33349.0,0.00410195]
[1625710582172,2.52104843,33350.0,33349.0,0.00410195]
[1625710582323,1.46855391,33350.0,33349.0,0.00410195]
[1625710582471,1.81159391,33350.0,33349.0,0.00410195]
[1625710582772,2.86434446,33350.0,33349.0,0.00410195]
[1625710584272,4.09280902,33350.0,33349.0,0.00410195]
[1625710584572,8.40270902,33350.0,33349.0,0.00410195]
[1625710584722,8.49170902,33350.0,33349.0,0.00410195]
[1625710585023,8.49170902,33350.0,33347.0,0.00408119]
[1625710585172,2.28175456,33348.0,33347.0,0.00408119]
[1625710585851,2.52233,33348.0,33347.0,0.00408119]
[1625710586300,3.75110937,33348.0,33347.0,0.00408119]
[1625710588252,5.15570579,33348.0,33347.0,0.00408119]
[1625710588553,5.15570579,33348.0,33346.0,0.001]
[1625710588854,5.15570579,33348.0,33347.0,0.00408152]
[1625710589004,1.64517186,33348.0,33347.0,0.00408152]
[1625710589304,3.75217024,33348.0,33347.0,0.00408152]
[1625710589455,5.15674168,33348.0,33347.0,0.00408152]
[1625710590430,3.75217024,33348.0,33347.0,0.00408152]
[1625710593583,3.84187024,33348.0,33347.0,0.00408152]
[1625710594335,5.2474972,33348.0,33347.0,0.00408152]
[1625710595834,5.2474972,33348.0,33346.0,0.00408146]
[1625710595985,0.24057544,33347.0,33346.0,0.00408146]
[1625710596135,3.75564842,33347.0,33345.0,0.5147813]
[1625710596361,1.64650991,33347.0,33346.0,0.00408152]
[1625710596663,5.16167143,33347.0,33346.0,0.00408152]
[1625710596961,5.16167143,33347.0,33345.0,0.00408167]
[1625710597112,5.16167143,33347.0,33346.0,0.00408158]
[1625710597411,5.16167143,33347.0,33344.0,0.001]
[1625710597561,3.51513016,33345.0,33344.0,0.51605114]
[1625710597862,3.51513016,33345.0,33344.0,0.001]
[1625710598013,3.7557056,33345.0,33344.0,0.52003899]
[1625710599440,3.7557056,33345.0,33344.0,0.00508158]
[1625710599965,3.7557056,33345.0,33344.0,0.57695338]
[1625710600191,3.7557056,33345.0,33344.0,1.26339857]
[1625710600420,2.52548033,33345.0,33344.0,2.29260402]
[1625710600945,2.52548033,33345.0,33344.0,1.26339857]
[1625710601244,3.75639003,33345.0,33344.0,1.26339857]
[1625710601770,3.75639003,33345.0,33344.0,1.20639857]
[1625710602070,3.75639003,33345.0,33344.0,1.26339857]
[1625710602371,2.52548033,33345.0,33344.0,2.29329594]
[1625710603122,2.52548033,33345.0,33344.0,3.49501387]
[1625710604771,3.75726748,33345.0,33344.0,3.49501387]
[1625710605072,2.52548033,33345.0,33344.0,3.49501387]
[1625710605228,3.75798531,33345.0,33344.0,3.49501387]
[1625710607328,3.75798531,33345.0,33344.0,3.49401387]
[1625710607852,3.75798531,33345.0,33344.0,2.29229594]
[1625710608077,3.75798531,33345.0,33344.0,3.49706638]
[1625710608530,3.75798531,33345.0,33344.0,2.23529594]
[1625710608832,5.1665818,33345.0,33344.0,2.23529594]
[1625710609658,5.1665818,33345.0,33344.0,1.20539857]
[1625710610483,5.1821708,33345.0,33344.0,1.20539857]
[1625710610943,5.1821708,33345.0,33344.0,1.26239857]
[1625710611093,5.1665818,33345.0,33344.0,2.29153516]
[1625710611384,1.64917193,33345.0,33344.0,2.29561771]
[1625710611539,5.17045648,33345.0,33344.0,2.29561771]
[1625710611844,3.76185999,33345.0,33344.0,2.29561771]
[1625710611986,3.76185999,33345.0,33344.0,3.50091768]
[1625710612364,3.76185999,33345.0,33344.0,2.29561771]
[1625710612511,3.76185999,33345.0,33344.0,3.50102945]
[1625710613187,5.17029365,33345.0,33344.0,2.29561771]
[1625710613487,3.76185999,33345.0,33344.0,2.29561771]
[1625710613637,3.76185999,33345.0,33344.0,3.50005677]
[1625710616265,3.76185999,33345.0,33344.0,2.29561771]
[1625710616491,3.76185999,33345.0,33344.0,3.4984357]
[1625710624304,3.77743982,33345.0,33344.0,2.29561771]
[1625710624464,5.18589122,33345.0,33344.0,2.29561771]
[1625710627383,5.18589122,33345.0,33344.0,2.23861771]
[1625710627685,5.18589122,33345.0,33344.0,1.20539954]
[1625710630761,5.18589122,33345.0,33344.0,0.51895435]
[1625710631513,5.18589122,33345.0,33344.0,1.20816495]
[1625710632264,5.18589122,33345.0,33344.0,2.24249174]
[1625710633539,5.17031139,33345.0,33344.0,2.24249174]
[1625710633690,5.17031139,33345.0,33344.0,3.44850444]
[1625710634815,5.17031139,33345.0,33344.0,3.50550444]
[1625710636541,3.76185999,33345.0,33344.0,4.88361443]
[1625710637368,5.17159261,33345.0,33344.0,3.50550444]
[1625710640294,5.17159261,33345.0,33344.0,3.44850444]
[1625710640593,5.17159261,33345.0,33344.0,3.50550444]
[1625710641194,5.18718878,33345.0,33344.0,3.50550444]
[1625710642394,5.17159261,33345.0,33344.0,3.50550444]
[1625710642544,5.18719119,33345.0,33344.0,3.44850444]
[1625710642694,5.18719119,33345.0,33344.0,3.44670444]
[1625710642999,5.18719119,33345.0,33344.0,2.24069174]
[1625710643300,6.77395111,33345.0,33344.0,2.24069174]
[1625710643600,6.86365111,33345.0,33344.0,1.20636495]
[1625710643746,6.77395111,33345.0,33344.0,1.20636495]
[1625710643897,6.77395111,33345.0,33344.0,1.16986495]
[1625710644347,6.77395111,33345.0,33344.0,0.48065435]
[1625710644572,6.77395111,33345.0,33344.0,0.8261162]
[1625710644872,6.77395111,33345.0,33344.0,0.5223004]
[1625710645324,6.77395111,33345.0,33344.0,0.00408255]
[1625710645624,6.77395111,33345.0,33342.0,0.34571463]
[1625710645625,8.53709154,33345.0,33342.0,0.17290016]
[1625710645781,4.93720274,33343.0,33342.0,0.17290016]
[1625710645926,7.75841107,33343.0,33341.0,0.001]
[1625710646375,1.01561371,33344.0,33341.0,0.001]
[1625710646376,6.48800202,33342.0,33341.0,0.001]
[1625710647050,8.3398203,33342.0,33341.0,0.001]
[1625710647501,8.3398203,33342.0,33337.0,0.41965806]
[1625710647655,8.3398203,33342.0,33337.0,0.29945806]
[1625710647815,8.3398203,33342.0,33336.0,0.002]
[1625710647816,5.99174299,33338.0,33336.0,0.002]
[1625710647958,6.28214299,33338.0,33336.0,0.002]
[1625710648106,5.99190529,33337.0,33336.0,0.002]
[1625710648258,6.00752183,33337.0,33336.0,0.002]
[1625710648407,6.48867271,33337.0,33336.0,0.002]
[1625710648856,6.48867271,33337.0,33332.0,0.13057173]
[1625710649007,5.98585318,33333.0,33332.0,0.13057173]
[1625710649760,5.98585318,33333.0,33331.0,0.003]
[1625710650062,5.98599907,33332.0,33331.0,0.003]
[1625710650361,6.46714995,33332.0,33331.0,0.003]
[1625710650511,6.46714995,33332.0,33326.0,0.69946529]
[1625710650663,4.1266,33327.0,33326.0,0.69946529]
[1625710650812,7.42543613,33327.0,33326.0,0.69946529]
[1625710650962,8.83262171,33327.0,33326.0,0.004]
[1625710651711,8.92222171,33327.0,33326.0,0.004]
[1625710652012,8.83262171,33327.0,33326.0,0.004]
[1625710652163,7.42543613,33327.0,33326.0,0.004]
[1625710652313,7.90658701,33327.0,33326.0,0.004]
[1625710652614,6.67526822,33327.0,33326.0,0.061]
[1625710652841,6.67526822,33327.0,33326.0,0.75690842]
[1625710653288,6.67526822,33327.0,33326.0,1.80045984]
[1625710653518,6.67526822,33327.0,33326.0,0.75690842]
[1625710653739,6.67526822,33327.0,33326.0,0.69990842]
[1625710654039,6.67526822,33327.0,33326.0,0.004]
[1625710654415,7.90466062,33327.0,33326.0,0.004]
[1625710654942,6.67526822,33327.0,33326.0,0.004]
[1625710655469,7.90465977,33327.0,33326.0,0.004]
[1625710655993,6.67526822,33327.0,33326.0,0.004]
[1625710656971,5.61982699,33327.0,33326.0,0.004]
[1625710658023,4.91614088,33327.0,33326.0,0.70034339]
[1625710658172,4.91614088,33327.0,33326.0,0.061]
[1625710658622,4.91614088,33327.0,33326.0,0.004]
[1625710658772,5.61802338,33327.0,33326.0,0.004]
[1625710659074,6.67077999,33327.0,33326.0,0.004]
[1625710659221,6.76207999,33327.0,33326.0,0.004]
[1625710659374,6.76207999,33327.0,33323.0,0.69796557]
[1625710659521,6.67077999,33327.0,33323.0,0.69796557]
[1625710659672,5.61802338,33327.0,33324.0,0.69699429]
[1625710660122,0.70187595,33326.0,33324.0,0.057]
[1625710660272,0.70187595,33326.0,33323.0,0.6980476]
[1625710660423,0.24057544,33324.0,33323.0,0.6980476]
[1625710660571,0.33097544,33324.0,33323.0,0.6980476]
[1625710660872,0.24057544,33324.0,33323.0,0.7550476]
[1625710661626,0.24057544,33324.0,33323.0,1.8004417]
[1625710661774,0.24057544,33324.0,33323.0,0.7550476]
[1625710663275,0.24057544,33324.0,33323.0,1.79968077]
[1625710665376,0.24057544,33324.0,33323.0,1.79868077]
[1625710666127,0.24057544,33324.0,33323.0,3.01690396]
[1625710666577,0.24057544,33324.0,33323.0,3.02101541]
[1625710667785,0.24057544,33324.0,33323.0,1.80279222]
[1625710667932,0.24057544,33324.0,33323.0,1.79868077]
[1625710668083,0.24057544,33324.0,33323.0,0.7540476]
[1625710668684,0.24057544,33324.0,33323.0,0.14400286]
[1625710669885,0.32836547,33324.0,33323.0,0.14400286]
[1625710670260,0.24057544,33324.0,33323.0,0.148115]
[1625710670635,0.24057544,33324.0,33323.0,0.06111214]
[1625710670861,0.24057544,33324.0,33323.0,0.14813101]
[1625710671536,0.24057544,33324.0,33323.0,0.14401887]
[1625710671687,0.32834342,33324.0,33323.0,0.057]
[1625710672287,0.32834342,33324.0,33323.0,0.06111224]
[1625710673039,0.41854342,33324.0,33323.0,0.06111224]
[1625710673262,0.33077544,33324.0,33323.0,0.06111224]
[1625710673712,0.33077544,33324.0,33323.0,0.00411224]
[1625710674163,1.03158142,33324.0,33322.0,0.00411254]
[1625710674462,1.03158142,33324.0,33320.0,0.001]
[1625710674463,1.03158142,33324.0,33323.0,0.00411254]
[1625710674614,1.18195686,33324.0,33323.0,0.00411254]
[1625710674763,0.48115088,33324.0,33323.0,0.00411254]
[1625710674912,0.48115088,33324.0,33321.0,0.0041124]
[1625710675213,0.08773274,33323.0,33321.0,0.0041124]
[1625710675513,0.08773288,33322.0,33321.0,0.0041124]
[1625710675662,0.36392288,33322.0,33321.0,0.0041124]
[1625710675813,0.27619,33322.0,33321.0,0.0041124]
[1625710676640,0.51676544,33322.0,33321.0,0.0041124]
[1625710677391,0.60448663,33322.0,33321.0,0.0041124]
[1625710677542,0.51676544,33322.0,33321.0,0.0041124]
[1625710678293,1.30611292,33322.0,33321.0,0.0041124]
[1625710678593,2.35671115,33322.0,33321.0,0.0041124]
[1625710679797,3.5980117,33322.0,33321.0,0.0041124]
[1625710680242,2.37220254,33322.0,33321.0,0.0041124]
[1625710680392,2.35671115,33322.0,33321.0,0.0041124]
[1625710682346,3.58224299,33322.0,33321.0,0.0041124]
[1625710682493,3.59778444,33322.0,33321.0,0.0041124]
[1625710683020,3.59778444,33322.0,33320.0,0.001]
[1625710683320,0.01554155,33321.0,33320.0,0.001]
[1625710683470,1.76602939,33321.0,33320.0,0.001]
[1625710683621,2.99132899,33321.0,33320.0,0.001]
[1625710684148,4.39184214,33321.0,33320.0,0.001]
[1625710684899,2.99132899,33321.0,33320.0,0.001]
[1625710685422,5.39141595,33321.0,33320.0,0.001]
[1625710685727,4.39141595,33321.0,33320.0,0.001]
[1625710686323,4.39141595,33321.0,33317.0,0.001]
[1625710686625,3.45689414,33318.0,33317.0,0.001]
[1625710687072,7.36179414,33318.0,33317.0,0.001]
[1625710687747,7.45219414,33318.0,33317.0,0.001]
[1625710687899,8.85081507,33318.0,33317.0,0.001]
[1625710688804,8.85081507,33318.0,33307.0,0.003]
[1625710689108,0.08756794,33312.0,33307.0,0.003]
[1625710689257,0.38708794,33312.0,33311.0,0.002]
[1625710689574,0.38708794,33312.0,33311.0,0.00609991]
[1625710689861,0.29952,33312.0,33311.0,0.002]
[1625710690160,0.38972,33312.0,33311.0,0.002]
[1625710690755,0.87087088,33312.0,33311.0,0.002]
[1625710691655,0.95840446,33312.0,33311.0,0.002]
[1625710692405,0.87087088,33312.0,33311.0,0.002]
[1625710692784,0.95835085,33312.0,33311.0,0.002]
[1625710697665,0.87087088,33312.0,33311.0,0.002]
[1625710697966,0.95825866,33312.0,33311.0,0.002]
[1625710698717,0.87087088,33312.0,33311.0,0.002]
[1625710699318,0.87087088,33312.0,33307.0,0.001]
[1625710699467,1.56908213,33312.0,33307.0,0.001]
[1625710699617,4.9078,33309.0,33308.0,0.00410026]
[1625710700745,4.9987,33309.0,33308.0,0.00410026]
[1625710701121,5.47985088,33309.0,33308.0,0.00410026]
[1625710702104,5.56736163,33309.0,33308.0,0.00410026]
[1625710703156,5.47646163,33309.0,33308.0,0.00410026]
[1625710703456,5.38895088,33309.0,33308.0,0.06110026]
[1625710705561,5.38895088,33309.0,33308.0,0.76238536]
[1625710706840,0.48115088,33309.0,33308.0,0.76238536]
[1625710706993,0.48115088,33309.0,33308.0,1.11082536]
[1625710707140,0.48115088,33309.0,33308.0,2.16312736]
[1625710707291,0.48115088,33309.0,33308.0,3.39078843]
[1625710709091,0.48115088,33309.0,33308.0,3.63136387]
[1625710709690,0.48115088,33309.0,33308.0,5.03479584]
[1625710728466,0.56928872,33309.0,33308.0,5.03479584]
[1625710728917,0.56928872,33309.0,33308.0,6.61588266]
[1625710728918,0.48115088,33309.0,33308.0,6.61588266]
[1625710730269,0.48115088,33309.0,33308.0,6.62824704]
[1625710730643,0.48115088,33309.0,33308.0,6.61588266]
[1625710730795,0.48115088,33309.0,33308.0,6.62824204]
[1625710732370,5.088e-05,33309.0,33308.0,6.62824204]
[1625710732521,0.08820427,33310.0,33308.0,6.62824204]
[1625710732672,0.08820427,33310.0,33309.0,0.01234779]
[1625710732823,0.08920158,33311.0,33309.0,5.98004064]
[1625710732971,0.08920158,33311.0,33310.0,0.057]
[1625710733123,0.08920158,33311.0,33310.0,6.03686553]
[1625710733124,0.001,33311.0,33310.0,6.03686553]
[1625710733272,0.001,33311.0,33310.0,6.04097163]
[1625710733421,0.001,33311.0,33310.0,6.28154707]
[1625710734172,0.001,33311.0,33310.0,6.80832733]
[1625710735373,0.32879538,33312.0,33310.0,6.80832733]
[1625710735523,0.32879538,33312.0,33311.0,10.55100571]
[1625710735672,0.32879538,33312.0,33311.0,10.60800571]
[1625710735822,0.32879538,33312.0,33311.0,10.61211174]
[1625710740179,0.24057544,33312.0,33311.0,10.61211174]
[1625710740631,0.001,33313.0,33311.0,10.61211174]
[1625710740632,0.001,33313.0,33311.0,10.6209412]
[1625710740783,0.001,33313.0,33312.0,0.01238775]
[1625710740931,0.001,33313.0,33312.0,6.52936206]
[1625710741082,0.001,33313.0,33312.0,6.58636206]
[1625710741232,0.001,33313.0,33312.0,6.59046805]
[1625710741383,0.001,33313.0,33312.0,6.83104349]
[1625710747388,0.08908065,33315.0,33312.0,6.83104349]
[1625710747539,0.08908065,33315.0,33314.0,3.16889886]
[1625710747689,0.08908065,33315.0,33314.0,6.57084766]
[1625710747990,0.08908065,33315.0,33314.0,6.57495298]
[1625710748364,0.001,33315.0,33314.0,6.57495298]
[1625710748664,0.001,33315.0,33314.0,6.58733258]
[1625710748965,0.08906322,33315.0,33314.0,6.57495298]
[1625710749116,0.001,33315.0,33314.0,6.57495298]
[1625710749341,0.001,33315.0,33314.0,6.58733289]
[1625710751445,0.001,33315.0,33314.0,6.57495298]
[1625710751595,0.08910079,33315.0,33314.0,6.57495298]
[1625710751821,0.52846751,33315.0,33314.0,4.99050355]
[1625710752121,0.001,33315.0,33314.0,4.99050355]
[1625710752495,0.08906217,33315.0,33314.0,6.57455537]
[1625710752720,0.08906217,33315.0,33314.0,4.99050355]
[1625710753328,0.001,33315.0,33314.0,4.99050355]
[1625710753922,0.08905236,33315.0,33314.0,6.57463309]
[1625710754373,0.08905236,33315.0,33314.0,4.99050355]
[1625710754675,0.08905236,33315.0,33314.0,6.57459588]
[1625710756327,0.08805236,33315.0,33314.0,6.57459588]
[1625710762034,1.23070655,33316.0,33314.0,6.57459588]
[1625710762184,0.52743542,33316.0,33315.0,6.51648436]
[1625710762334,0.52743542,33316.0,33315.0,11.38445744]
[1625710762636,1.2309491,33316.0,33315.0,9.79936665]
[1625710762935,0.52743542,33316.0,33315.0,11.38445504]
[1625710763236,1.23081392,33316.0,33315.0,9.79936665]
[1625710763912,1.23081392,33316.0,33315.0,11.38470105]
[1625710764744,1.23081392,33316.0,33315.0,9.79936665]
[1625710765344,1.23081392,33316.0,33315.0,11.38469783]
[1625710766095,2.28454563,33316.0,33315.0,9.79936665]
[1625710766393,6.19604563,33316.0,33315.0,9.79936665]
[1625710770978,6.19604563,33316.0,33315.0,5.33616665]
[1625710771130,6.19604563,33316.0,33315.0,4.99251665]
[1625710776385,6.19604563,33316.0,33315.0,5.47366753]
[1625710776686,6.19604563,33316.0,33315.0,5.41666753]
[1625710776987,8.81604278,33316.0,33315.0,4.00769794]
[1625710777440,10.40313651,33316.0,33315.0,1.71812236]
[1625710777738,8.83149106,33316.0,33315.0,2.77581398]
[1625710777893,10.40397716,33316.0,33315.0,1.71812236]
[1625710778338,10.49287716,33316.0,33315.0,1.71812236]
[1625710778792,10.47742888,33316.0,33315.0,1.71812236]
[1625710778941,10.38852888,33316.0,33315.0,1.71812236]
[1625710779094,8.81604278,33316.0,33315.0,1.71812236]
[1625710779692,3.9115,33316.0,33315.0,0.48527396]
[1625710779991,8.79963565,33316.0,33315.0,2.77663931]
[1625710780141,8.79963565,33316.0,33315.0,1.71908607]
[1625710780368,8.79963565,33316.0,33315.0,2.77649248]
[1625710780668,8.79963565,33316.0,33315.0,1.71908607]
[1625710781044,4.88813565,33316.0,33315.0,1.71908607]
[1625710781494,4.88813565,33316.0,33315.0,2.77646889]
[1625710782244,4.88813565,33316.0,33315.0,1.71908607]
[1625710783899,4.88813565,33316.0,33315.0,2.77644986]
[1625710785699,4.88813565,33316.0,33315.0,3.06905986]
[1625710785851,3.49160027,33316.0,33315.0,4.30245833]
[1625710786000,3.49160027,33316.0,33315.0,4.35945833]
[1625710786301,3.49160027,33316.0,33315.0,5.76900571]
[1625710786752,2.26960999,33316.0,33315.0,5.76900571]
[1625710788255,3.49273558,33316.0,33315.0,5.76900571]
[1625710789831,2.26960999,33316.0,33315.0,5.76900571]
[1625710792760,3.4934699,33316.0,33315.0,5.76900571]
[1625710793510,2.26960999,33316.0,33315.0,5.76900571]
[1625710793963,0.52380986,33316.0,33315.0,7.35484117]
[1625710794114,0.52380986,33316.0,33315.0,7.36722852]
[1625710794263,0.35018463,33316.0,33315.0,7.36722852]
[1625710794412,0.87533291,33316.0,33315.0,7.36722852]
[1625710794713,0.37483291,33316.0,33315.0,7.36722852]
[1625710795014,0.08770335,33316.0,33315.0,7.36722852]
[1625710795163,0.0877225,33317.0,33315.0,7.36722852]
[1625710795463,0.08872973,33318.0,33316.0,6.00301493]
[1625710795613,0.08872973,33318.0,33317.0,6.05996098]
[1625710795763,0.08872973,33318.0,33317.0,6.00296098]
[1625710795913,0.08872973,33318.0,33317.0,6.06414378]
[1625710796214,0.08872973,33318.0,33317.0,10.43674378]
[1625710796514,0.08872973,33318.0,33317.0,10.67731922]
[1625710796815,0.001,33318.0,33317.0,10.67731922]
[1625710796964,0.001,33318.0,33317.0,10.66493316]
[1625710800942,0.001,33318.0,33317.0,10.60793316]
[1625710801092,1.05009802,33318.0,33317.0,10.60793316]
[1625710801243,2.08710497,33318.0,33317.0,9.02219274]
[1625710802220,3.31040766,33318.0,33317.0,9.02219274]
[1625710802670,3.31040766,33318.0,33317.0,7.6126457]
[1625710803197,4.70734565,33318.0,33317.0,6.37929204]
[1625710804624,4.94792109,33318.0,33317.0,6.37929204]
[1625710806125,4.94792109,33318.0,33317.0,7.61248066]
[1625710806275,4.94792109,33318.0,33317.0,3.23988066]
[1625710806577,3.5509831,33318.0,33317.0,3.23988066]
[1625710806802,4.94840954,33318.0,33317.0,3.23988066]
[1625710807104,4.94840954,33318.0,33317.0,1.7661166]
[1625710807402,4.94740954,33318.0,33317.0,0.70895632]
[1625710808527,4.94740954,33318.0,33317.0,0.0041828]
[1625710809278,6.51970459,33318.0,33317.0,0.0041828]
[1625710811306,4.94740954,33318.0,33317.0,0.0041828]
[1625710811530,6.5189354,33318.0,33317.0,0.0041828]
[1625710812281,4.94740954,33318.0,33317.0,0.0041828]
[1625710812508,6.5183256,33318.0,33317.0,0.0041828]
[1625710812959,6.5183256,33318.0,33317.0,0.26842078]
[1625710813633,6.5183256,33318.0,33317.0,0.18034145]
[1625710813933,6.5183256,33318.0,33317.0,0.0041828]
[1625710814085,4.94740954,33318.0,33317.0,0.0041828]
[1625710816188,6.5182672,33318.0,33317.0,0.18033084]
[1625710816562,6.5182672,33318.0,33317.0,0.26840092]
[1625710817015,6.5182672,33318.0,33317.0,0.18033084]
[1625710817314,4.94740954,33318.0,33317.0,0.0041828]
[1625710821978,6.51977095,33318.0,33317.0,0.18032035]
[1625710822277,4.94740954,33318.0,33317.0,0.0041828]
[1625710823479,4.94740954,33318.0,33317.0,0.70871693]
[1625710831741,4.94740954,33318.0,33317.0,1.76557102]
[1625710832265,4.94740954,33318.0,33317.0,1.82257102]
[1625710834670,4.94740954,33318.0,33317.0,0.76571693]
[1625710835197,4.94740954,33318.0,33317.0,1.82261331]
[1625710838276,4.94740954,33318.0,33317.0,3.05572559]
[1625710838880,4.94740954,33318.0,33317.0,1.82261331]
[1625710841282,4.94740954,33318.0,33317.0,7.09261331]
[1625710842408,4.94740954,33318.0,33317.0,7.32986331]
[1625710842558,4.60985954,33318.0,33317.0,8.56311795]
[1625710842715,2.97185766,33318.0,33317.0,8.56311795]
[1625710842886,2.97185766,33318.0,33317.0,8.80369339]
[1625710843034,2.97185766,33318.0,33317.0,10.21305905]
[1625710843310,1.74855497,33318.0,33317.0,10.21305905]
[1625710844819,0.69945695,33318.0,33317.0,10.21305905]
[1625710845638,0.70059128,33319.0,33317.0,11.79835264]
[1625710845788,0.70059128,33319.0,33317.0,11.79416984]
[1625710845938,0.70059128,33319.0,33318.0,4.40359457]
[1625710846089,0.70059128,33319.0,33318.0,4.46059457]
[1625710846615,0.70059128,33319.0,33318.0,4.46478183]
[1625710846764,0.70059128,33319.0,33318.0,4.70535727]
[1625710847740,1.75140557,33319.0,33318.0,4.70535727]
[1625710850664,0.70182329,33320.0,33318.0,4.70535727]